Cogmind - Beta 16 @@@ ROGUE MODE // 2025.11.23 @ 14:41:40 Player: Mozco Result: Destroyed by D-53 Grenadier with Mini Grenade Launcher Performance ------------- Evolutions (0) 0 Regions Visited (4) 800 Robots Destroyed (21) 105 Value Destroyed (483) 483 Prototype IDs (1) 20 Alien Tech Used (0) 0 Bonus (-84) -84 TOTAL SCORE: 1324 Bonus ------- Friendly Fire -84 Cogmind --------- Core Integrity 0/250 Matter 251/300 Energy 39/265 System Corruption 0% Temperature Cool (0) Movement Treading (240) Ox1 Location -9/Mines Parts ------- > --- POWER (1) -------- Improved Ion Engine > --- PROPULSION (2) --- Light Treads > --- UTILITY (2) ------ Large Storage Unit > --- WEAPON (2) ------- Heavy Assault Rifle > --- INVENTORY (15) --- Improved Ion Engine Light Treads YI-UF0's Bottomless Matter Pit (173) Structural Scanner Experimental Sensor Array Light Armor Plating Light Armor Plating Shield Generator Hacking Suite Light Assault Rifle Heavy Assault Rifle Heavy Assault Rifle Grenade Launcher Datajack Peak State ------------ > --- POWER ------------ Light Ion Engine > --- PROPULSION ------- Light Treads Light Treads > --- UTILITY ---------- Large Storage Unit YI-UF0's Bottomless Matter Pit > --- WEAPON ----------- Heavy Assault Rifle Heavy Assault Rifle > --- INVENTORY -------- Improved Ion Engine Improved Ion Engine Light Treads Structural Scanner Light Armor Plating Shield Generator Shield Generator Hacking Suite Medium Laser Small Laser Light Assault Rifle Heavy Assault Rifle Heavy Assault Rifle Grenade Launcher Datajack [Rating: 19] Favorites ----------- Power Light Ion Engine Engine Light Ion Engine Propulsion Light Treads Treads Light Treads Utility Large Storage Unit Device Shield Generator Storage Large Storage Unit Weapon Heavy Assault Rifle Ballistic Gun Heavy Assault Rifle Launcher Grenade Launcher Build | -11 -10 -10 -10 -9 ------- Run | Yrd Mat Min Exi Min Slots Evolved . | . . . . . Power . | . . . . . Propulsion . | . . . . . Utility . | . . . . . Weapon . | . . . . . Parts Attached 19 | 6 9 3 . 1 Power 3 | 1 1 . . 1 Engine 3 | 1 1 . . 1 Core . | . . . . . Reactor . | . . . . . Propulsion 3 | 2 1 . . . Treads 3 | 2 1 . . . Leg . | . . . . . Wheel . | . . . . . Hover . | . . . . . Flight . | . . . . . Utility 6 | 1 2 3 . . Device 3 | . 1 2 . . Storage 3 | 1 1 1 . . Processor . | . . . . . Hackware . | . . . . . Protection . | . . . . . Artifact . | . . . . . Weapon 7 | 2 5 . . . Energy Gun . | . . . . . Energy Cannon . | . . . . . Ballistic Gun 6 | 2 4 . . . Ballistic Cannon . | . . . . . Launcher 1 | . 1 . . . Special Weapon . | . . . . . Impact Weapon . | . . . . . Slashing Weapon . | . . . . . Piercing Weapon . | . . . . . Special Melee Weapon . | . . . . . Unidentified Prototypes 1 | . . 1 . . Parts Lost 6 | . 1 1 . 4 Power 1 | . . . . 1 Propulsion 2 | . . 1 . 1 Utility 1 | . . . . 1 Weapon 2 | . 1 . . 1 Highest Loss Streak 4 | . 1 1 . 4 To Critical Strikes . | . . . . . Average Backups 11 | 1 7 14 15 15 Power 1 | . 1 2 2 2 Propulsion . | . . 1 1 1 Utility 3 | . 1 5 6 6 Weapon 4 | . 3 5 5 4 Tool/Special . | . . . . . Unused Backups 12 | . 1 1 . 10 Power 2 | . 1 . . 1 Propulsion 1 | . . . . 1 Utility 4 | . . . . 4 Weapon 4 | . . 1 . 3 Tool/Special 1 | . . . . 1 Average Slot Usage (%) 98 | . 96 99 100 98 Engine 13 | . 13 14 14 14 Treads 27 | . 27 27 28 26 Device 13 | . 12 14 14 14 Storage 14 | . 14 14 14 14 Ballistic Gun 27 | . 27 28 28 15 Peak Build Rating 19 | 6 11 19 13 13 Average Rating 10 | 4 8 12 13 12 On Entrance 8 | . 6 11 13 13 Avg Prop Armor Cover (%) . | . . . . . Naked Turns . | . . . . . Heaviest Build 31 | 13 30 31 31 31 Greatest Support 40 | 40 40 40 40 40 Greatest Overweight (x) 7 | . 7 . . . Average Overweight (x) . | . . . . . Largest Inventory Capacity 15 | 8 15 15 15 15 Average Capacity 14 | 7 13 15 15 15 Most Carried 15 | 2 15 15 15 15 Average Carried 11 | 1 7 14 15 14 Final Capacity 15 | 8 15 15 15 15 Final Carried 15 | 2 15 15 15 14 Class Distribution -------------------- 100% | Mutant Dominant Class ---------------- Mutant | -10/Materials Mutant | -10/Mines Mutant | -10/Exiles Mutant | -9/Mines Resources | -11 -10 -10 -10 -9 ----------- Run | Yrd Mat Min Exi Min Matter Collected 899 | 205 393 301 . . Remotely . | . . . . . Salvage Created 681 | . 511 161 . 9 Parts 43 | . 31 11 . 1 Haulers Intercepted 1 | . 1 . . . Recyclers Shooed 3 | . 1 . . 2 Parts Field Recycled . | . . . . . Retrieved Matter . | . . . . . Parts Self-Destructed . | . . . . . Prevented . | . . . . . Parts Restored . | . . . . . Kills | -11 -10 -10 -10 -9 ------- Run | Yrd Mat Min Exi Min Combat Hostiles Destroyed 20 | . 10 4 . 6 Guns 13 | . 9 4 . . AOE 7 | . 1 . . 6 Classes Destroyed 8 | . 5 2 . 1 Builder 1 | . 1 . . . Tunneler 1 | . . 1 . . Hauler 1 | . 1 . . . Recycler 1 | . 1 . . . Swarmer 6 | . . 3 . 3 Grunt 9 | . 9 . . . Subdweller 1 | . 1 . . . Assembled 3 | . . . . 3 Best Kill Streak 4 | . 4 3 . 3 Combat Bots Only 3 | . 3 3 . 3 Max Kills in Single Turn 3 | . 2 1 . 3 Gunslinging 1 | . 1 . . . Exploded 3 | . 1 . . 3 Melee . | . . . . . Uniques/NPCs Destroyed 1 | . . 1 . . YI-UF0 (-10/Mines) Combat | -11 -10 -10 -10 -9 -------- Run | Yrd Mat Min Exi Min Hostile Shots Fired 92 | . 53 19 . 20 Missed 24 | . 15 7 . 2 Hits 68 | . 38 12 . 18 Projectile 68 | . 38 12 . 18 AOE 17 | . . 8 . 9 Critical Strikes 1 | . 1 . . . Damage Taken 1202 | . 540 279 . 383 Core 253 | . 72 56 . 125 Absorbed by Shields 120 | . . 59 . 61 Regen/Repaired (Parts) 94 | . 94 . . . Core Remaining (%) 100 | 100 . . . . Volleys Fired 70 | . 47 17 . 6 Largest 2 | . 2 2 . 2 Hottest 50 | . 50 46 . 46 Shots Fired 132 | . 90 34 . 8 Gun 125 | . 87 34 . 4 Cannon . | . . . . . Launcher 7 | . 3 . . 4 Special . | . . . . . Kinetic 125 | . 87 34 . 4 Thermal . | . . . . . Explosive 7 | . 3 . . 4 Electromagnetic . | . . . . . Robot Hit Streak 14 | . 14 6 . 3 Robot Miss Streak 4 | . 3 4 . 2 Penetration Max . | . . . . . Secondary Targets 3 | . 1 2 . . Max Gunslinging Chain 1 | . 1 1 . . Shots Hit Robots 85 | . 65 17 . 3 Core Hits 42 | . 25 8 . 9 Critical Kills 1 | . . 1 . . Critical Parts Destroyed . | . . . . . Critical Strikes 1 | . . 1 . . Destroy 1 | . . 1 . . Melee Attacks . | . . . . . Impact . | . . . . . Slashing . | . . . . . Piercing . | . . . . . Sneak Attacks . | . . . . . Combat Hostiles . | . . . . . Follow-up Attacks . | . . . . . Damage Inflicted 1704 | . 965 267 . 472 Guns 1001 | . 724 248 . 29 Cannons . | . . . . . Explosions 662 | . 238 . . 424 Melee . | . . . . . Ramming 41 | . 3 19 . 19 Kinetic 1001 | . 724 248 . 29 Thermal . | . . . . . Explosive 662 | . 238 . . 424 Electromagnetic . | . . . . . Impact . | . . . . . Slashing . | . . . . . Piercing . | . . . . . Highest Corruption . | . . . . . Average Corruption . | . . . . . Corruption Purged . | . . . . . Corruption Blocked . | . . . . . Overload Shots . | . . . . . Overflow Damage 9 | . . . . 9 Projectiles . | . . . . . Explosions 9 | . . . . 9 Melee . | . . . . . Knockbacks 1 | . . 1 . . Impact 1 | . . 1 . . Kinetic . | . . . . . Secondary . | . . . . . Self-Inflicted Damage 41 | . . . . 41 Shots 3 | . . . . 3 Rammed 7 | . 1 2 . 4 Targets Rammed 7 | . 1 2 . 4 Kicked . | . . . . . Crushed . | . . . . . Highest Temperature 27 | . 27 . . . Average Temperature 8 | . 8 . . . Received Heat Transfer 285 | . 285 . . . Siege Activations . | . . . . . Martial Activations . | . . . . . Shielding Activations . | . . . . . Robots Disrupted . | . . . . . Combat Hostiles . | . . . . . Robots Corrupted . | . . . . . Combat Hostiles . | . . . . . Parts Fried . | . . . . . Impact Corruptions . | . . . . . Robots Melted . | . . . . . Combat Hostiles . | . . . . . Parts Melted . | . . . . . Heat Transferred . | . . . . . Parts Sabotaged . | . . . . . Parts Stolen . | . . . . . Parts Stripped . | . . . . . Power Chain Reactions . | . . . . . Alert | -11 -10 -10 -10 -9 ------- Run | Yrd Mat Min Exi Min Maximum Alert Level . | . . . . . Low Security (%) 100 | 100 100 100 . 100 Level 1 . | . . . . . Level 2 . | . . . . . Level 3 . | . . . . . Level 4 . | . . . . . Level 5 . | . . . . . High Security . | . . . . . Max Security . | . . . . . Peak Influence 90 | . 80 90 . 79 Initial 15 | . . 15 . . Average 19 | . 26 9 . 54 Influence Increases 490 | . 292 105 . 93 Destroy 0b10 Robot/C 300 | . 180 60 . 60 Destroy 0b10 Robot/NC 20 | . 15 5 . . Destroy Leader 62 | . 42 10 . 10 Successful Hack 15 | . 15 . . . Disable Machine 45 | . 15 30 . . Destroy Structure 33 | . 10 . . 23 Partial Spotted 15 | . 15 . . . Influence Decreases 487 | . 253 144 . 90 Entered New Map 24 | . . 24 . . Time Decay 413 | . 243 120 . 50 Lost Part 50 | . 10 . . 40 Squads Dispatched 2 | . 2 . . . Investigation 1 | . 1 . . . Extermination . | . . . . . Reinforcement 1 | . 1 . . . Assault . | . . . . . Garrison . | . . . . . Intercept . | . . . . . Searches Triggered . | . . . . . Construction Impeded . | . . . . . Haulers Reinforced . | . . . . . Active Scanning Responses . | . . . . . Cargo Convoy Interrupts . | . . . . . Stealth | -11 -10 -10 -10 -9 --------- Run | Yrd Mat Min Exi Min Distress Signals 1 | . 1 . . . Communications Jammed . | . . . . . Distress Signals . | . . . . . Times Spotted 33 | . 16 4 . 13 Peak Tracking Total 14 | . 3 3 . 14 Tactical Retreats 1 | . . . . 1 Traps | -11 -10 -10 -10 -9 ------- Run | Yrd Mat Min Exi Min Traps Triggered 4 | . 4 . . . Indirectly . | . . . . . Trap Hack Attempts . | . . . . . Triggered . | . . . . . Disarmed . | . . . . . Reprogrammed . | . . . . . Reused . | . . . . . Traps Extracted . | . . . . . Installed . | . . . . . Triggered . | . . . . . Machines | -11 -10 -10 -10 -9 ---------- Run | Yrd Mat Min Exi Min Machines Disabled 3 | . 1 2 . . Max in Single Turn 1 | . 1 1 . . Machines Repaired . | . . . . . Machines Dismantled . | . . . . . Machines Sabotaged . | . . . . . Overloaded Fab Kills . | . . . . . Hacking | -11 -10 -10 -10 -9 --------- Run | Yrd Mat Min Exi Min Machines Accessed 6 | . 5 . 1 . Terminals 4 | . 4 . . . Fabricators . | . . . . . Repair Stations 1 | . 1 . . . Recycling Units . | . . . . . Scanalyzers . | . . . . . Garrison Access . | . . . . . Total Hacks 14 | . 13 . 1 . Successful 8 | . 7 . 1 . Failed 6 | . 6 . . . Catastrophic 2 | . 2 . . . Database Lockouts . | . . . . . Manual 9 | . 9 . . . Terminals 10 | . 10 . . . Fabricators . | . . . . . Repair Stations 3 | . 3 . . . Recycling Units . | . . . . . Scanalyzers . | . . . . . Garrison Access . | . . . . . Terminal Hacks 4 | . 3 . 1 . Record 1 | . . . 1 . Part Schematic 1 | . 1 . . . Robot Analysis 1 | . 1 . . . Zone Layout 1 | . 1 . . . Fabricator Hacks . | . . . . . Repair Station Hacks 2 | . 2 . . . Scan Component 1 | . 1 . . . Repair 1 | . 1 . . . Recycling Unit Hacks . | . . . . . Scanalyzer . | . . . . . Garrison Access Hacks . | . . . . . Unauthorized Hacks 2 | . 2 . . . Terminals 2 | . 2 . . . Botnet 2 | . 2 . . . Fabricators . | . . . . . Repair Stations . | . . . . . Recycling Units . | . . . . . Scanalyzers . | . . . . . Garrison Access . | . . . . . Data Cores Recovered . | . . . . . Used . | . . . . . Hacking Detections 5 | . 5 . . . Full Trace Events . | . . . . . Feedback Events . | . . . . . Feedback Blocked . | . . . . . Robot Schematics Acquired . | . . . . . Robots Built . | . . . . . Authchips . | . . . . . Time . | . . . . . Total Robot Build Rating . | . . . . . Part Schematics Acquired 1 | . 1 . . . Parts Built . | . . . . . Authchips . | . . . . . Time . | . . . . . Total Part Build Rating . | . . . . . Part Studies Acquired . | . . . . . Parts Repaired 1 | . 1 . . . Time 26 | . 26 . . . Parts Recycled . | . . . . . Recycled Matter . | . . . . . Retrieved Matter . | . . . . . Retrieved Components . | . . . . . Parts Scanalyzed . | . . . . . Part Schematics Acquired . | . . . . . Parts Damaged . | . . . . . Bothacking | -11 -10 -10 -10 -9 ------------ Run | Yrd Mat Min Exi Min Used RIF Installer . | . . . . . Robots Hacked . | . . . . . Non-combat . | . . . . . Combat . | . . . . . Robot Hacks Applied . | . . . . . Relay Couplers Released . | . . . . . Fabnet Peak Effective % . | . . . . . Robots Rewired . | . . . . . Allies Hacked . | . . . . . Hacks Repelled . | . . . . . Allies | -11 -10 -10 -10 -9 -------- Run | Yrd Mat Min Exi Min Total Allies 1 | . . 1 . . Largest Group 1 | . . 1 . . Highest-Rated Group 31 | . . 31 . . Highest-Rated Ally 31 | . . 31 . . Total Orders . | . . . . . Ally Attacks 5 | . . 5 . . Total Damage 40 | . . 40 . . Kills . | . . . . . Allies Corrupted . | . . . . . Allies Melted . | . . . . . Intel | -11 -10 -10 -10 -9 ------- Run | Yrd Mat Min Exi Min Active Infowar (turns) 833 | . 833 . . . Structural 833 | . 833 . . . Robot Analysis Total 1 | . 1 . . . Derelict Logs Recovered 3 | . . 2 . 1 Drone Launches . | . . . . . Drone Recoveries . | . . . . . Exploration | -11 -10 -10 -10 -9 ------------- Run | Yrd Mat Min Exi Min Turns Passed 2251 | 87 920 924 205 115 Spaces Moved 1205 | 50 432 538 129 56 Core 4 | 3 1 . . . Treads 1201 | 47 431 538 129 56 Legs . | . . . . . Wheels . | . . . . . Hover . | . . . . . Flight . | . . . . . Fastest Speed 50 | 50 160 160 160 160 Average Speed 160 | 153 160 160 160 160 Slowest Speed 400 | 160 400 160 160 160 Overloaded Moves . | . . . . . Propulsion Burnouts . | . . . . . Robots Hopped . | . . . . . Potential Cave-ins . | . . . . . Cave-ins Triggered . | . . . . . Exploration Rate (%) 48 | 5 76 96 48 15 Regions Visited 4 Branch Regions 3 Pre-discovered Areas 1 | . . . 1 . Known Exits Taken . | . . . . . Unknown Exits Taken 4 | 1 1 1 1 . Scrap Searched 1 | . . 1 . . Spaces Dug 23 | . . . . 23 Terrain Destroyed 38 | . 8 . . 30 Melee . | . . . . . Projectile . | . . . . . AOE 38 | . 8 . . 30 Terrain Rammed . | . . . . . Walls Destroyed . | . . . . . Machines Disabled . | . . . . . Actions | -11 -10 -10 -10 -9 --------- Run | Yrd Mat Min Exi Min Total 1393 | 57 570 566 128 72 Wait 63 | . 59 3 . 1 Move 1201 | 49 431 537 128 56 Hop . | . . . . . Pick Up 21 | 2 17 1 . 1 Fast Attach 11 | 6 4 1 . . Attach 5 | . 3 1 . 1 Detach 1 | . . 1 . . Swap 9 | . 5 2 . 2 Drop 5 | . 3 1 . 1 Fire 70 | . 47 17 . 6 Melee . | . . . . . Ram . | . . . . . Kick . | . . . . . Crush 7 | . 1 2 . 4 Escape Stasis . | . . . . . Rewire . | . . . . . Trap . | . . . . . Miscellaneous . | . . . . . Route ------- -11/Scrapyard -10/Materials (discovered 2 exits: [*Mat] / [*Min]) -10/Mines (discovered 4 exits: [*Mat x2] / *Exi / Sub) -10/Exiles -9/Mines History --------- Turn | Location | Event 2 | -11/Scrapyard | Met Revision 17 6 | -11/Scrapyard | Discovered new exit (range 14) 88 | -11/Scrapyard | Entered Materials 281 | -10/Materials | Discovered new exit (range 7) 307 | -10/Materials | Build established: Mutant 469 | -10/Materials | Discovered new exit (range 10) 588 | -10/Materials | Derelicts attacked the area 714 | -10/Materials | Repaired Lgt. Treads 1008 | -10/Materials | Entered Mines 1011 | -10/Mines | Received a Mining Laser from a helpful Derelict 1071 | -10/Mines | Destroyed YI-UF0 1090 | -10/Mines | Found Prototype Storage 1090 | -10/Mines | Identified YI-UF0's Bottomless Matter Pit 1135 | -10/Mines | Identified exit to Subcaves 1195 | -10/Mines | Learned Materials terminal intel 1248 | -10/Mines | Core integrity fell below 50% 1300 | -10/Mines | Deemed a non-threat by the Exiles lab entrance 1300 | -10/Mines | Discovered new exit (range 5) 1452 | -10/Mines | Discovered new exit (range 7) 1612 | -10/Mines | Discovered new exit (range 10) 1828 | -10/Mines | Found a Scrap Suit stashed away for nefarious purposes 1932 | -10/Mines | Entered Exiles 1971 | -10/Exiles | Met 8R-AWN 2000 | -10/Exiles | Met EX-HEX 2062 | -10/Exiles | Met EX-DEC 2070 | -10/Exiles | Learned location of Zion (-6) 2116 | -10/Exiles | Discovered new exit (range 12) 2137 | -10/Exiles | Entered Mines 2191 | -9/Mines | Learned 2 Materials zone layouts 2202 | -9/Mines | Found a damaged Exp. Sensor Array with a note attached 2206 | -9/Mines | Found Prototype Device 2211 | -9/Mines | Assembled infested the area 2246 | -9/Mines | Core integrity fell below 20% 2252 | -9/Mines | Destroyed by D-53 Grenadier with Mini Grenade Launcher Last Messages --------------- 02206_ Acquired Prototype Device. 02211_ ALERT: Infestation in the mines, dispatching Demolisher response squad. 02214_ T-07 Excavator suffers critical hit (Destroy). 02226_ as-91821 destroyed. 02226_ as-34731 destroyed. 02226_ as-50935 destroyed. 02229_ The unstable cave ceiling collapses. 02230_ Slammed into R-06 Scavenger. 02239_ C-45 Heavy ARC bursts open, deploying its payload. 02239_ D-53 Grenadier unfolds itself. 02241_ as-32316 destroyed. 02241_ as-44572 destroyed. 02245_ as-72775 destroyed. 02247_ Lgt. Treads destroyed. 02249_ The unstable cave ceiling collapses. 02250_ Lgt. Ion Engine destroyed. 02251_ Hvy. Assault Rifle destroyed. 02252_ The unstable cave ceiling collapses. 02252_ Shield Generator destroyed. Map ----- +----------------------------------------------------+ | ???????? #?????????????????? | | ????????? #?????????????????? | | ?????????? #?????????????????? | | ??????????? ##????????????????? | | ???????????? ##???????????????? | | ????????????# #???????????????? | | ????????????# #???????????????? | | ????????????# #????????????????? | | ?????????????# ##????????????????? | | ????????????### #????????????????? | | ????????????# ###??????????????? | | ??????????### ##?????????????? | | ??????????# [ #####?????????? | | ??????????#= #?????????? | | ?????????? #????????? | | ?????????? %## # #????????? | | ??????????# # a ## ##????????? | | ??????????# # ##?# ####?????????? | | ????????### #??###????????????? | | ????????# ####???????????????? | | ????????# # ##??????????????? | | ????????# #??????????????? | | ???????## d #??????????????? | | ???????# d #??????????????? | | ???????# #??????????????? | | ???????# @ #? #??????????????? | | ???????# #?? #??????????????? | | ???????# #??????????????????? | | ???????## ##??????????????????? | | ????????## ##???????????????????? | | ?????????### ###????????????????????? | | ??########## #??????????????????????? | | ??# ## #??????????????????????? | | ??# """ ## #??????????????????????? | | ?## """ ## #??????????????????????? | | ?# """ #??????????????????????? | | # ####??????????????????????? | | # % #?????????????????????????? | | # * #?????????????????????????? | | # ####?????????????????????????? | | ### ##????????????????????????????? | | ??#####?????????????????????????????? | | ????????????????????????????????????? | | ????????????????????????????????????? | | ????????????????????????????????????? | | ????????????????????????????????????? | | ????????????????????????????????????? | | ????????????????????????????????????? | | ????????????????????????????????????? | | ????????????????????????????????????? | +----------------------------------------------------+ Best States ------------- Heat Dissipation 25 Energy Generation 10 Energy Capacity 250 Matter Stores 300 Matter Capacity 300 Sight Range 16 Terrain Scan Density 10 Evasion (%) 40 Recoil Reduction 2 Item Schematics ----------------- Hcp. Storage Unit | -10/Materials | Hacked Robot Schematics ------------------ None Fabricated ------------ Nothing Repaired ---------- Lgt. Treads | 32% | -10/Materials Studied --------- None Alien Tech Used ----------------- None Achievements -------------- None Challenges ------------ None Game ------ Seed ProtonBlastLauncher Manual? 0 Play Time 00:11:13 Cumulative 322.7 hours Start 2025.11.23 @ 10:06:21 End 2025.11.23 @ 14:41:40 Sessions 1 Manual Loads 0 Difficulty Rogue Special Mode None Game No. 339 Rogue 335 Adventurer 3 Explorer 1 Win Type - Total 2 Types 2/0/0/0/0/0/0/0/0/0 Lore% 82 Gallery% 78 Achievement% 63 Wizard Run 0 Options --------- Layout 0 ASCII 0 Keyboard 0 Movement Numpad Keybinds 0 Fullscreen 2 Font 18/SmallcapsGlow Map View 76x50 Zoom Use 0% Tactical HUD 1 Map Filters NONE Filters NONE Steam 1 RUN: 3438cade-9d5d-47ca-be1b-e25aa8f2c7d6